bitfinex-derivatives/quotes_SOLF0:USTF0_20250509
["timestamp","ask_amount","ask_price","bid_price","bid_amount"]
[1746765881457,28.22,161.84,161.78,28.18]
[1746765881657,34.3999,161.84,161.78,28.18]
[1746765881854,34.3999,161.84,161.8,3.96150135]
[1746765882051,34.3999,161.84,161.81,6.1807]
[1746765883958,34.4,161.84,161.8,6.1811]
[1746765884158,28.22,161.84,161.78,28.18]
[1746765884661,6.1809,161.82,161.79,6.1816]
[1746765886665,6.1803,161.83,161.79,6.1816]
[1746765886960,6.1803,161.83,161.8,6.1812]
[1746765888361,28.22,161.84,161.79,6.1816]
[1746765888362,6.1808,161.82,161.79,6.1816]
[1746765888763,28.22,161.84,161.79,6.1816]
[1746765889463,6.1803,161.83,161.8,6.1813]
[1746765893870,6.1806,161.82,161.79,6.1816]
[1746765894070,28.22,161.84,161.78,28.18]
[1746765894669,6.1805,161.83,161.8,6.1813]
[1746765894871,6.1805,161.83,161.78,28.18]
[1746765895271,6.1805,161.83,161.8,6.1813]
[1746765895772,6.1806,161.82,161.79,6.1815]
[1746765895967,28.22,161.84,161.78,28.18]
[1746765896470,6.1804,161.83,161.8,6.1811]
[1746765897671,34.3999,161.84,161.81,6.1808]
[1746765898563,28.22,161.84,161.82,6.1805]
[1746765899369,6.1795,161.85,161.82,6.1805]
[1746765899768,6.1795,161.85,161.81,6.1808]
[1746765899973,6.1798,161.84,161.81,6.1808]
[1746765900269,28.14,161.87,161.78,56.32]
[1746765900571,28.14,161.87,161.8,6.1812]
[1746765901170,28.14,161.87,161.78,56.32]
[1746765901171,6.18,161.84,161.81,6.1809]
[1746765901871,6.1803,161.83,161.8,6.1813]
[1746765904275,6.18,161.84,161.81,6.181]
[1746765904475,28.14,161.87,161.78,56.32]
[1746765904876,6.1804,161.83,161.8,6.1811]
[1746765908976,6.18,161.84,161.81,10.14289023]
[1746765909578,6.18,161.84,161.8,6.1812]
[1746765909877,6.1803,161.83,161.8,10.14309023]
[1746765910377,3.96189023,161.81,161.74,3.96189023]
[1746765910566,3.96189023,161.79,161.7,2.1108]
[1746765910769,3.96189023,161.79,161.72,3.96189023]
[1746765910970,3.96189023,161.79,161.7,2.1108]
[1746765910971,3.96189023,161.77,161.7,34.19269023]
[1746765911378,6.1835,161.75,161.71,6.1845]
[1746765911876,28.14,161.78,161.71,6.1845]
[1746765912576,28.14,161.78,161.69,30.0852]
[1746765912577,28.14,161.78,161.72,6.1844]
[1746765913177,28.14,161.78,161.71,6.1847]
[1746765913778,6.1831,161.76,161.72,6.1844]
[1746765916082,6.1826,161.77,161.73,6.1839]
[1746765917982,34.3426,161.77,161.73,6.1839]
[1746765921186,6.183,161.76,161.73,6.1839]
[1746765921487,6.183,161.76,161.72,6.1843]
[1746765922486,6.183,161.76,161.73,6.184]
[1746765922681,34.3426,161.77,161.73,6.184]
[1746765923086,28.16,161.77,161.73,6.184]
[1746765923986,6.1829,161.76,161.73,6.184]
[1746765925689,6.1833,161.75,161.72,6.1842]
[1746765925884,28.16,161.77,161.72,6.1842]
[1746765926180,28.16,161.77,161.71,6.1846]
[1746765926589,28.16,161.77,161.67,36.30319771]
[1746765927086,6.1841,161.73,161.7,6.1851]
[1746765928785,6.1841,161.73,161.69,6.1854]
[1746765928988,28.1,161.75,161.66,58.1482]
[1746765929189,28.1,161.75,161.66,30.0482]
[1746765929390,6.1851,161.71,161.66,1.9482]
[1746765929584,28.1,161.72,161.66,1.9482]
[1746765929790,28.1,161.72,161.68,6.1856]
[1746765929984,34.2845,161.72,161.68,6.1856]
[1746765930590,34.2845,161.72,161.69,6.1855]
[1746765931592,2.0258,161.74,161.71,6.1848]
[1746765931784,28.1,161.75,161.67,6.19769771]
[1746765932690,34.2835,161.75,161.72,6.1844]
[1746765932991,34.2835,161.75,161.67,6.19769771]
[1746765933286,28.1,161.75,161.73,6.1838]
[1746765933592,28.1,161.75,161.7,6.19769771]
[1746765933893,28.1,161.78,161.75,6.1831]
[1746765934086,28.1,161.78,161.7,8.15209771]
[1746765934288,34.2824,161.78,161.74,6.1834]
[1746765935291,6.1826,161.77,161.73,6.184]
[1746765935591,28.1,161.78,161.73,6.184]
[1746765935792,34.2824,161.78,161.74,6.1836]
[1746765936586,28.1,161.81,161.73,34.27769771]
[1746765936788,28.1,161.81,161.74,2.042]
[1746765936988,28.1,161.81,161.76,6.19769771]
[1746765937188,6.1809,161.82,161.77,28.08]
[1746765937993,6.1809,161.82,161.78,6.1819]
[1746765938292,28.1,161.84,161.78,6.1819]
[1746765938693,6.181,161.81,161.78,6.1819]
[1746765939187,6.1807,161.82,161.78,6.1819]
[1746765939394,6.1807,161.82,161.77,28.08]
[1746765939588,28.1,161.84,161.77,28.08]
[1746765939988,6.1806,161.82,161.78,6.182]
[1746765940598,6.181,161.81,161.78,6.182]
[1746765940894,28.1,161.84,161.78,6.182]
[1746765941394,6.1809,161.82,161.78,6.182]
[1746765942496,6.1809,161.82,161.79,6.1816]
[1746765943999,6.1809,161.82,161.78,6.182]
[1746765944198,6.181,161.81,161.78,6.182]
[1746765944600,28.1,161.84,161.77,34.2624]
[1746765944800,28.1,161.84,161.75,56.16]
[1746765945201,30.1342,161.83,161.74,4.0056]
[1746765945398,6.1824,161.78,161.74,2.042]
[1746765945800,6.1824,161.78,161.75,6.1832]
[1746765946201,6.1819,161.79,161.75,6.1832]
[1746765946500,28.1,161.8,161.75,6.1832]
[1746765947002,6.1819,161.79,161.75,6.1832]
[1746765947204,6.1819,161.79,161.76,6.1829]
[1746765947398,28.1,161.8,161.74,2.042]
[1746765947704,6.1823,161.78,161.74,8.2256]
[1746765948402,6.1825,161.77,161.74,8.2256]
[1746765948603,28.1,161.8,161.73,28.06]
[1746765949808,6.1831,161.76,161.73,28.06]
[1746765950507,6.1833,161.75,161.72,6.1841]
[1746765950804,28.06,161.79,161.71,34.2247]
[1746765951007,6.1835,161.75,161.71,34.2247]
[1746765952206,28.1,161.76,161.71,28.04]
[1746765952506,28.1,161.76,161.73,6.1838]
[1746765953306,34.2831,161.76,161.73,6.1838]
[1746765953507,28.1,161.76,161.72,6.1842]
[1746765953708,28.1,161.76,161.7,36.16899771]
[1746765953906,6.184,161.74,161.7,6.1849]
[1746765954099,28.1,161.76,161.7,6.1849]
[1746765954603,6.1841,161.73,161.7,6.1849]
[1746765955202,6.1844,161.72,161.69,6.1854]
[1746765956805,6.1842,161.73,161.7,6.1852]
[1746765957002,28.1,161.76,161.7,6.1852]
[1746765957205,28.1,161.76,161.67,34.23769771]
[1746765957407,28.1,161.76,161.7,6.185]
[1746765957408,6.184,161.74,161.7,6.185]
[1746765958109,6.1834,161.75,161.71,6.1845]
[1746765958406,6.1834,161.75,161.67,34.23769771]
[1746765958707,28.1,161.76,161.7,6.1848]
[1746765959206,6.1842,161.73,161.7,6.1848]
[1746765959400,6.1842,161.73,161.69,6.1854]
[1746765960002,6.1846,161.72,161.69,6.1854]
[1746765961003,6.1841,161.73,161.69,6.1854]
[1746765961207,28.04,161.75,161.67,34.23769771]
[1746765961406,28.1,161.76,161.7,6.19769771]
[1746765961604,6.1822,161.78,161.71,28.04]
[1746765961908,34.2222,161.78,161.71,30.081]
[1746765962810,6.1826,161.77,161.74,6.1835]
[1746765963010,28.04,161.78,161.71,30.081]
[1746765963199,28.04,161.78,161.77,6.1825]
[1746765963706,562.3,161.81,161.73,6.19769771]
[1746765964011,6.1814,161.8,161.73,34.23769771]
[1746765964206,562.3,161.81,161.73,34.23769771]
[1746765964409,562.3,161.81,161.74,6.1834]
[1746765964611,6.1818,161.79,161.74,6.1834]
[1746765965113,562.3,161.81,161.74,6.1834]
[1746765966014,6.1824,161.78,161.74,6.1834]
[1746765966607,562.3,161.81,161.73,12.38159771]
[1746765966813,562.3,161.81,161.71,30.081]
[1746765967008,28.02,161.8,161.71,2.041]
[1746765967213,28.02,161.8,161.71,30.061]
[1746765967414,28.02,161.8,161.72,6.1843]
[1746765967907,6.1831,161.76,161.72,6.1843]
[1746765968113,28.04,161.77,161.72,6.1843]
[1746765968914,6.183,161.76,161.72,6.1843]
[1746765969313,28.04,161.77,161.72,6.1843]
[1746765970510,6.1834,161.75,161.72,6.1843]
[1746765970718,28.04,161.77,161.73,6.184]
[1746765971116,28.04,161.77,161.71,30.061]
[1746765971315,28.04,161.8,161.75,6.1833]
[1746765971516,28.04,161.8,161.73,6.19769771]
[1746765971717,28.04,161.8,161.73,34.23769771]
[1746765972317,34.2215,161.8,161.73,34.23769771]
[1746765973316,6.1818,161.79,161.73,34.23769771]
[1746765973915,6.1822,161.78,161.73,34.23769771]
[1746765974619,6.1818,161.79,161.76,6.1828]
[1746765975716,34.2215,161.8,161.76,6.1828]
[1746765976219,34.2215,161.8,161.77,6.1824]
[1746765976421,28.04,161.8,161.73,34.23769771]
[1746765976615,56.06,161.83,161.73,34.23769771]
[1746765977019,28.04,161.83,161.73,34.23769771]
[1746765977620,28.04,161.83,161.76,6.19769771]
[1746765977820,28.04,161.83,161.76,34.19769771]
[1746765978320,28.04,161.86,161.76,34.19769771]
[1746765978521,6.1799,161.84,161.77,1.9776]
[1746765979027,6.1799,161.84,161.8,6.181]
[1746765979226,6.1802,161.83,161.8,6.181]
[1746765979725,28.04,161.86,161.8,6.181]
[1746765979931,6.18,161.84,161.81,6.1809]
[1746765980330,6.1795,161.85,161.77,30.0176]
[1746765980532,6.1795,161.85,161.81,6.1807]
[1746765980733,28.04,161.86,161.77,30.0176]
[1746765980932,34.2191,161.86,161.78,1.9761]
[1746765981232,28.04,161.86,161.82,6.1803]
[1746765981427,34.2192,161.86,161.82,6.1803]
[1746765981629,34.2192,161.86,161.83,6.1801]
[1746765982932,34.2192,161.86,161.82,6.1805]
[1746765984032,6.1796,161.85,161.81,6.1808]
[1746765984236,1.9836,161.88,161.8,28.0]
[1746765985237,6.1794,161.86,161.82,6.1806]
[1746765985435,1.9836,161.88,161.82,6.1806]
[1746765985832,6.1793,161.86,161.82,6.1806]
[1746765987235,6.1793,161.86,161.83,6.1802]
[1746765988338,6.1793,161.86,161.82,6.1805]
[1746765989838,27.98,161.92,161.82,6.19769771]
[1746765990040,27.98,161.92,161.83,2.0241]
[1746765990236,6.1774,161.91,161.86,6.1788]
[1746765990435,27.98,161.92,161.86,6.1788]
[1746765991439,6.1779,161.89,161.85,6.1793]
[1746765991639,6.1779,161.89,161.84,27.98]
[1746765992641,6.1783,161.88,161.84,27.98]
[1746765992841,27.98,161.92,161.84,27.98]
[1746765993139,6.1777,161.9,161.84,27.98]
[1746765993341,27.98,161.92,161.85,6.19769771]
[1746765993842,27.98,161.95,161.88,6.19769771]
[1746765994041,27.98,161.95,161.89,27.98]
[1746765994643,34.1559,161.95,161.92,6.1767]
[1746765994832,27.98,161.95,161.92,6.1767]
[1746765995342,562.08,161.98,161.91,6.19769771]
[1746765996138,6.1756,161.96,161.92,6.1765]
[1746765996342,562.08,161.98,161.89,55.96]
[1746765996645,6.1758,161.95,161.91,6.177]
[1746765997746,6.1761,161.94,161.9,6.1774]
[1746765998445,6.1765,161.93,161.89,34.1579]
[1746765998645,6.1765,161.93,161.89,6.1779]
[1746765998845,27.96,161.94,161.86,55.94]
[1746765999045,6.1772,161.91,161.87,6.1784]
[1746765999346,27.96,161.93,161.86,55.94]
[1746766000045,6.1768,161.92,161.88,6.178]
[1746766000542,6.1775,161.91,161.87,6.1785]
[1746766000739,27.96,161.93,161.86,34.15769771]
[1746766001139,34.1367,161.93,161.88,6.1783]
[1746766002347,6.1768,161.92,161.88,6.1783]
[1746766002748,27.96,161.93,161.86,34.15769771]
[1746766003152,27.96,161.93,161.91,6.1771]
[1746766003343,534.1,161.98,161.89,6.19769771]
[1746766003544,562.06,161.98,161.9,27.96]
[1746766003849,562.06,161.98,161.94,6.1757]
[1746766004044,6.1749,161.97,161.94,6.1757]
[1746766004349,562.06,161.98,161.94,6.1757]
[1746766005053,562.06,161.98,161.93,6.1762]
[1746766005348,562.06,161.98,161.9,30.0532]
[1746766005749,568.2348,161.98,161.9,30.0532]
[1746766005948,562.06,161.98,161.9,30.0532]
[1746766006448,6.1751,161.97,161.93,6.1762]
[1746766006839,562.06,161.98,161.9,30.0532]
[1746766007045,6.1749,161.97,161.93,6.1762]
[1746766007243,6.1749,161.97,161.9,30.0532]
[1746766007549,6.1749,161.97,161.93,6.1761]
[1746766007749,6.1749,161.97,161.9,30.0532]
[1746766008149,6.1749,161.97,161.94,6.1757]
[1746766008647,562.06,161.98,161.9,30.0532]
[1746766008648,27.96,161.98,161.92,6.19769771]
[1746766008850,27.96,162.01,161.98,6.1744]
[1746766009547,27.96,162.01,161.99,6.1741]
[1746766009845,27.96,162.01,161.95,6.19769771]
[1746766010048,34.1334,162.01,161.98,6.1742]
[1746766010246,27.96,162.01,161.95,6.19769771]
[1746766012250,27.96,162.01,161.98,6.1742]
[1746766013848,27.96,162.01,161.99,6.174]
[1746766014349,34.1334,162.01,161.95,6.19769771]
[1746766015445,34.1334,162.01,161.98,6.1743]
[1746766015848,34.1334,162.01,161.97,6.1747]
[1746766016452,6.1738,162.0,161.95,6.19769771]
[1746766016649,27.96,162.01,161.95,6.19769771]
[1746766017942,6.1741,161.99,161.96,6.1752]
[1746766018140,27.96,162.01,161.91,38.10109771]
[1746766018346,1.984,162.0,161.91,55.86]
[1746766018545,6.1758,161.95,161.92,6.1766]
[1746766019352,6.1758,161.95,161.91,6.177]
[1746766019951,6.1758,161.95,161.92,6.1767]
[1746766020146,6.1758,161.95,161.9,36.23089771]
[1746766020349,27.92,161.97,161.9,34.13769771]
[1746766021252,6.1759,161.95,161.92,6.1767]
[1746766021450,27.92,161.97,161.9,34.13769771]
[1746766021652,27.92,161.97,161.88,55.86]
[1746766021853,6.1766,161.93,161.89,6.1776]
[1746766023254,6.1766,161.93,161.9,6.1775]
[1746766024851,6.1766,161.93,161.89,6.1778]
[1746766025455,6.177,161.92,161.88,6.1782]
[1746766025649,27.94,161.96,161.86,4.2056]
[1746766025650,27.94,161.96,161.86,27.94]
[1746766025850,6.177,161.92,161.86,27.94]
[1746766026055,6.177,161.92,161.88,6.178]
[1746766026454,27.94,161.96,161.87,6.19769771]
[1746766026753,27.94,161.96,161.91,6.1768]
[1746766026943,6.1754,161.96,161.9,6.19769771]
[1746766027142,6.1754,161.96,161.9,34.13769771]
[1746766027355,3.911,162.0,161.93,6.19769771]
[1746766027554,6.1745,161.98,161.93,6.19769771]
[1746766028552,6.1745,161.98,161.95,6.1756]
[1746766028857,6.175,161.97,161.94,6.1758]
[1746766029555,6.1746,161.98,161.94,6.1758]
[1746766030658,6.175,161.97,161.93,6.1762]
[1746766031157,6.175,161.97,161.94,6.1758]
[1746766031659,1.984,162.0,161.95,27.94]
[1746766032662,1.984,162.0,161.97,6.1748]
[1746766033458,1.984,162.0,161.95,27.94]
[1746766033655,29.9264,162.04,161.91,3.9606]
[1746766033864,29.9264,162.04,161.93,27.94]
[1746766034057,29.9264,162.04,161.96,6.175]
[1746766034766,6.174,162.0,161.96,6.175]
[1746766035662,6.1742,161.99,161.95,6.1755]
[1746766035863,1.9864,162.04,161.95,6.1755]
[1746766036060,55.86,162.03,161.92,27.94]
[1746766036265,55.86,162.03,161.94,6.1759]
[1746766036861,55.86,162.03,161.92,27.94]
[1746766037363,55.86,162.03,161.95,6.1754]
[1746766037563,55.86,162.03,161.92,27.94]
[1746766037760,55.86,162.03,161.94,6.1758]
[1746766037966,55.86,162.03,161.92,27.94]
[1746766038263,6.1745,161.98,161.92,27.94]
[1746766038866,6.1749,161.97,161.93,6.1761]
[1746766039066,55.86,162.03,161.92,27.94]
[1746766039269,27.92,162.02,161.92,27.94]
[1746766039466,27.92,162.02,161.94,6.176]
[1746766039663,27.92,162.02,161.92,27.94]
[1746766039860,27.92,162.02,161.89,56.32]
[1746766040162,1.11342874,162.01,161.89,56.32]
[1746766040568,2.0781,162.0,161.89,56.32]
[1746766040769,30.3295,161.99,161.89,56.32]
[1746766040964,6.1752,161.97,161.92,6.1765]
[1746766041168,27.92,161.98,161.92,6.1765]
[1746766041470,27.92,161.98,161.86,27.92]
[1746766041663,2.0369,161.97,161.86,27.92]
[1746766042062,6.1763,161.94,161.89,6.1777]
[1746766042262,56.28,161.94,161.89,6.1777]
[1746766042770,56.28,161.94,161.88,6.1782]
[1746766043675,6.177,161.92,161.88,6.1782]
[1746766044271,6.1775,161.91,161.84,28.32]
[1746766044472,6.1775,161.91,161.83,27.94]
[1746766044669,6.1775,161.91,161.83,56.26]
[1746766045870,6.1778,161.9,161.83,56.24]
[1746766046374,6.1778,161.9,161.85,6.1794]
[1746766046677,6.1778,161.9,161.83,56.24]
[1746766046875,6.178,161.89,161.85,6.1792]
[1746766047177,2.0361,161.93,161.85,6.1792]
[1746766047479,6.178,161.89,161.85,6.1792]
[1746766047775,56.56,161.9,161.85,6.1792]
[1746766047975,6.1782,161.89,161.85,6.1792]
[1746766048273,56.56,161.9,161.84,6.1798]
[1746766048679,56.56,161.9,161.81,56.56]
[1746766049081,56.56,161.9,161.81,28.3]
[1746766051076,6.1783,161.88,161.84,6.1796]
[1746766051979,6.178,161.89,161.85,6.1794]
[1746766054280,62.7377,161.9,161.86,6.179]
[1746766054783,56.56,161.9,161.87,6.1786]
[1746766054984,28.32,161.9,161.87,6.1786]
[1746766055583,28.32,161.9,161.86,6.1789]
[1746766055982,28.32,161.9,161.83,6.18724974]
[1746766056186,28.32,161.92,161.83,6.18724974]
[1746766056583,6.1774,161.91,161.87,6.1785]
[1746766057787,6.1776,161.9,161.86,6.1789]
[1746766058581,6.1776,161.9,161.87,6.1787]
[1746766058784,6.1773,161.91,161.87,6.1787]
[1746766060288,34.4968,161.92,161.83,6.18724974]
[1746766060685,28.32,161.92,161.83,6.18724974]
[1746766060993,6.1774,161.91,161.83,6.18724974]
[1746766061588,34.4969,161.92,161.89,6.1779]
[1746766061792,28.32,161.92,161.83,6.18724974]
[1746766062489,6.1776,161.9,161.87,6.1784]
[1746766063089,6.1776,161.9,161.88,6.1783]
[1746766063589,6.1776,161.9,161.87,6.1785]
[1746766064290,6.1779,161.89,161.87,6.1785]
[1746766064786,6.1779,161.89,161.86,6.1789]
[1746766065792,6.1776,161.9,161.87,6.1786]
[1746766066091,28.32,161.92,161.83,6.18724974]
[1746766066392,28.32,161.92,161.86,6.18724974]
[1746766066691,34.497,161.92,161.89,6.1777]
[1746766067088,28.32,161.92,161.89,6.1777]
[1746766067287,6.1772,161.91,161.88,6.1782]
[1746766067793,28.32,161.92,161.88,6.1782]
[1746766068193,6.1772,161.91,161.88,6.1782]
[1746766069596,34.4968,161.92,161.89,6.1779]
[1746766069997,34.4968,161.92,161.88,6.1782]
[1746766071794,6.1772,161.91,161.88,6.1782]
[1746766073696,34.4969,161.92,161.88,6.1782]
[1746766074895,6.1773,161.91,161.88,6.1782]
[1746766076296,34.4969,161.92,161.88,6.1782]
[1746766076495,28.6,161.95,161.88,6.18724974]
[1746766076701,28.6,161.98,161.91,6.18724974]
[1746766077999,6.1752,161.96,161.91,6.18724974]
[1746766078697,6.1757,161.95,161.91,12.36414974]
[1746766079097,6.1757,161.95,161.91,6.18724974]
[1746766079698,6.1761,161.94,161.91,6.18724974]
[1746766080088,6.1761,161.94,161.91,12.36434974]
[1746766080390,6.1761,161.94,161.91,6.18724974]
[1746766080787,6.1764,161.93,161.91,6.18724974]
[1746766081602,6.1768,161.92,161.9,28.58]
[1746766082705,6.1771,161.91,161.9,28.58]
[1746766082905,6.1771,161.91,161.88,28.6]
[1746766083201,28.6,161.98,161.88,34.7782]
[1746766084302,6.177,161.92,161.88,34.7782]
[1746766084499,28.6,161.98,161.89,6.1778]
[1746766085004,6.177,161.92,161.88,34.7781]
[1746766085905,6.1772,161.91,161.88,34.7781]
[1746766086203,28.6,161.98,161.88,28.6]
[1746766086403,28.6,161.98,161.87,28.42]
[1746766086604,1.9745,162.01,161.91,6.18724974]
[1746766086806,1.9745,162.01,161.92,2.079]
[1746766087201,30.5945,162.01,161.92,8.2556]
[1746766088106,6.1751,161.97,161.93,6.1763]
[1746766090615,28.6,161.98,161.92,8.2556]
[1746766091199,360.9377,162.02,161.92,2.079]
[1746766091200,28.6,162.0,161.92,2.079]
[1746766091509,28.6,162.0,161.94,6.18724974]
[1746766091704,34.774,162.0,161.96,6.175]
[1746766092811,34.774,162.0,161.97,6.1748]
[1746766093112,28.6,162.0,161.94,6.18724974]
[1746766093609,357.0,162.02,161.94,6.18724974]
[1746766093808,6.1732,162.02,161.98,6.1742]
[1746766094104,28.6,162.03,161.95,28.58]
[1746766094812,34.7728,162.03,161.99,6.1738]
[1746766095109,28.6,162.03,161.99,6.1738]
[1746766096112,6.1731,162.02,161.99,6.1738]
[1746766096610,34.7727,162.03,161.99,6.1738]
[1746766099109,6.173,162.02,161.99,6.1738]
[1746766099914,6.173,162.02,161.98,6.1743]
[1746766102414,6.173,162.02,161.99,6.1741]
[1746766104015,6.173,162.02,161.98,6.1744]
[1746766105417,34.7726,162.03,161.99,6.1737]
[1746766105715,34.7726,162.03,161.95,28.58]
[1746766106017,28.6,162.03,161.95,28.58]
[1746766106514,6.173,162.02,161.99,6.1739]
[1746766106810,28.6,162.03,161.95,28.58]
[1746766107019,28.6,162.03,161.97,6.18724974]
[1746766107215,6.1731,162.02,161.99,6.1738]
[1746766107417,6.1731,162.02,161.97,6.18724974]
[1746766107813,28.6,162.03,161.92,2.079]
[1746766108009,28.6,162.03,161.94,6.18724974]
[1746766108215,533.84,162.04,161.97,6.18724974]
[1746766108515,6.1733,162.02,161.99,6.1741]
[1746766108715,562.34,162.04,161.97,6.18724974]
[1746766108912,28.5,162.04,161.97,6.18724974]
[1746766109215,6.1728,162.03,161.99,6.1738]
[1746766109413,6.1728,162.03,161.97,6.18724974]
[1746766109913,6.1728,162.03,161.99,6.1738]
[1746766110117,6.1728,162.03,161.97,6.18724974]
[1746766110817,34.6723,162.04,161.97,6.18724974]
[1746766111313,6.1726,162.03,162.0,6.1734]
[1746766112119,6.1731,162.02,161.99,6.1741]
[1746766113523,6.1727,162.03,162.0,6.1737]
[1746766115325,6.173,162.02,161.99,6.174]
[1746766115827,6.1727,162.03,161.97,6.18724974]
[1746766116831,6.1727,162.03,162.0,6.1734]
[1746766119024,6.1732,162.02,161.99,6.1739]
[1746766119225,28.5,162.04,161.97,6.18724974]
[1746766119926,6.173,162.02,161.98,6.1743]
[1746766120119,28.5,162.04,161.97,6.18724974]
[1746766120626,6.1736,162.01,161.97,6.1746]
[1746766121125,6.1731,162.02,161.99,6.174]
[1746766121425,28.5,162.04,161.95,28.28]
[1746766121628,6.1728,162.03,162.0,6.1736]
[1746766122129,28.5,162.04,161.95,28.28]
[1746766122329,6.173,162.02,161.95,28.28]
[1746766122723,28.5,162.04,161.95,28.28]
[1746766123028,6.1731,162.02,161.99,6.174]
[1746766123228,28.5,162.04,161.95,28.28]
[1746766123525,34.6723,162.04,162.0,6.1734]
[1746766125428,6.1727,162.03,162.0,6.1734]
[1746766127534,28.5,162.04,161.95,28.28]
[1746766127835,28.5,162.04,161.95,28.24]
[1746766128129,6.1736,162.01,161.97,6.1747]
[1746766128934,6.1736,162.01,161.98,6.1745]
[1746766129539,6.1736,162.01,161.97,6.1748]
[1746766130842,6.1736,162.01,161.98,6.1744]
[1746766131033,6.1731,162.02,161.98,6.1744]
[1746766131230,28.5,162.04,161.94,6.18724974]
[1746766131434,28.5,162.04,161.96,6.175]
[1746766131635,28.5,162.04,161.94,6.18724974]
[1746766131835,28.5,162.04,161.94,34.40724974]
[1746766132142,28.5,162.04,161.97,6.18724974]
[1746766132642,6.1728,162.03,161.99,6.1738]
[1746766132838,28.5,162.04,161.97,6.18724974]
[1746766133543,6.1732,162.02,161.98,6.1743]
[1746766134845,6.1732,162.02,161.99,6.174]
[1746766135248,6.1727,162.03,161.99,6.174]
[1746766135442,28.5,162.04,161.97,6.18724974]
[1746766136050,34.6724,162.04,162.0,6.1735]
[1746766136243,28.5,162.04,161.97,6.18724974]
[1746766136648,6.1729,162.03,161.99,6.174]
[1746766138550,6.173,162.02,161.99,6.174]
[1746766140350,6.1727,162.03,161.99,6.174]
[1746766141451,6.1732,162.02,161.98,6.1743]
[1746766141646,6.1732,162.02,161.96,6.18724974]
[1746766142250,6.1732,162.02,161.98,6.1742]
[1746766142551,6.1727,162.03,161.96,6.18724974]
[1746766142850,28.5,162.04,161.96,6.18724974]
[1746766143451,34.6724,162.04,161.96,6.18724974]
[1746766143751,28.5,162.04,161.95,28.58]
[1746766143947,28.5,162.04,161.95,34.76724974]
[1746766144249,28.5,162.04,162.01,6.1733]
[1746766144951,34.6724,162.04,162.01,6.1733]
[1746766145148,28.5,162.04,162.02,6.1729]
[1746766145947,28.5,162.04,162.01,6.1732]
[1746766146754,28.5,162.04,161.98,34.70724974]
[1746766147349,28.5,162.04,162.02,6.1726]
[1746766147551,28.58,162.07,162.02,6.1726]
[1746766147948,28.58,162.07,162.01,6.1732]
[1746766148153,28.58,162.07,161.99,1.9211]
[1746766148352,28.58,162.07,161.98,34.70724974]
[1746766148554,6.1732,162.02,161.98,6.1742]
[1746766149253,28.58,162.03,161.93,1.9211]
[1746766149456,28.58,162.03,161.91,10.18864974]
[1746766149457,2.0871,162.02,161.92,57.06]
[1746766149646,3.9897,162.02,161.94,6.1759]
[1746766150054,6.175,161.97,161.94,6.1759]